Cogmind - Beta 14 @@@ ROGUE MODE // 2024.11.02 @ 07:23:51 Player: toydarian Result: Self-destructed Performance ------------- Evolutions (1) 500 Regions Visited (3) 600 Robots Destroyed (28) 140 Value Destroyed (657) 657 Prototype IDs (1) 20 Alien Tech Used (0) 0 Bonus (28) 28 TOTAL SCORE: 1945 Bonus ------- Follower Combat Kills 28 Cogmind --------- Core Integrity 273/400 Matter 245/300 Energy 235/250 System Corruption 0% Temperature Hot (208) Movement Treading (160) Location -9/Materials Parts ------- > --- POWER (1) -------- Ion Engine > --- PROPULSION (3) --- Light Treads Light Treads Light Treads > --- UTILITY (3) ------ Large Storage Unit Signal Interpreter > --- WEAPON (2) ------- Light Assault Rifle Mining Claw > --- INVENTORY (15) --- Ion Engine Heavy Ion Engine Aluminum Leg Aluminum Leg Aluminum Leg Aluminum Leg Carbon-fiber Leg Beamcaster Light Assault Rifle Grenade Launcher Grenade Launcher Grenade Launcher Rocket Launcher Peak State ------------ > --- POWER ------------ Ion Engine > --- PROPULSION ------- Aluminum Leg Aluminum Leg Carbon-fiber Leg > --- UTILITY ---------- Large Storage Unit Signal Interpreter Light Armor Plating > --- WEAPON ----------- Beamcaster Light Assault Rifle > --- INVENTORY -------- Ion Engine Heavy Ion Engine Light Treads Light Treads Light Treads Aluminum Leg Aluminum Leg Aluminum Leg Light Assault Rifle Light Assault Rifle Grenade Launcher Grenade Launcher Grenade Launcher Rocket Launcher Mining Claw [Rating: 16] Favorites ----------- Power Ion Engine Engine Ion Engine Propulsion Aluminum Leg Treads Light Treads Leg Aluminum Leg Utility Large Storage Unit Storage Large Storage Unit Processor Signal Interpreter Protection Light Armor Plating Weapon Assault Rifle Energy Gun Beamcaster Ballistic Gun Assault Rifle Slashing Weapon Mining Claw Build | -11 -10 -10 -9 ------- Run | Yrd Mat Min Mat Slots Evolved 2 | . . . 2 Power . | . . . . Propulsion 1 | . . . 1 Utility 1 | . . . 1 Weapon . | . . . . Parts Attached 37 | 6 20 . 11 Power 4 | 1 2 . 1 Engine 4 | 1 2 . 1 Core . | . . . . Reactor . | . . . . Propulsion 16 | 2 9 . 5 Treads 5 | . 2 . 3 Leg 11 | 2 7 . 2 Wheel . | . . . . Hover . | . . . . Flight . | . . . . Utility 6 | 1 4 . 1 Device . | . . . . Storage 2 | 1 1 . . Processor 1 | . . . 1 Hackware . | . . . . Protection 3 | . 3 . . Artifact . | . . . . Weapon 11 | 2 5 . 4 Energy Gun 2 | . 1 . 1 Energy Cannon . | . . . . Ballistic Gun 8 | 2 4 . 2 Ballistic Cannon . | . . . . Launcher . | . . . . Special Weapon . | . . . . Impact Weapon . | . . . . Slashing Weapon 1 | . . . 1 Piercing Weapon . | . . . . Special Melee Weapon . | . . . . Unidentified Prototypes 1 | . 1 . . Parts Lost 8 | . 4 . 4 Power . | . . . . Propulsion 3 | . 2 . 1 Utility 2 | . 1 . 1 Weapon 3 | . 1 . 2 Highest Loss Streak 3 | . 2 . 3 To Critical Strikes . | . . . . Average Slot Usage (%) 95 | . 92 100 96 Engine 13 | . 13 14 11 Leg 27 | . 26 28 30 Storage 13 | . 14 14 11 Protection 10 | . 9 14 9 Ballistic Gun 26 | . 27 28 15 Peak Build Rating 16 | 6 11 8 16 Average Rating 7 | 4 7 8 12 On Entrance 5 | . 6 8 8 Naked Turns . | . . . . Heaviest Build 36 | 14 36 31 34 Greatest Support 40 | 20 40 20 35 Greatest Overweight (x) 8 | . 8 1 1 Average Overweight (x) . | . . 1 . Largest Inventory Capacity 15 | 8 15 15 15 Average Capacity 14 | 6 14 15 15 Most Carried 15 | 5 15 15 15 Average Carried 11 | 3 9 14 14 Final Capacity 15 | 8 15 15 15 Final Carried 15 | 4 15 15 13 Class Distribution -------------------- 93% | Mutant 6% | Scavenger-Mutant Dominant Class ---------------- Mutant | -10/Materials Mutant | -10/Mines Scavenger-Mutant | -9/Materials Resources | -11 -10 -10 -9 ----------- Run | Yrd Mat Min Mat Matter Collected 884 | 209 537 56 82 Remotely . | . . . . Salvage Created 1060 | . 768 29 263 Parts 61 | . 41 3 17 Haulers Intercepted . | . . . . Recyclers Shooed 3 | . 3 . . Parts Field Recycled . | . . . . Retrieved Matter . | . . . . Parts Self-Destructed . | . . . . Prevented . | . . . . Kills | -11 -10 -10 -9 ------- Run | Yrd Mat Min Mat Combat Hostiles Destroyed 22 | . 14 2 6 Guns 22 | . 14 2 6 Classes Destroyed 5 | . 5 . . Worker 1 | . 1 . . Recycler 4 | . 3 . 1 Watcher 1 | . 1 . . Swarmer 7 | . 3 2 2 Grunt 15 | . 11 . 4 Best Kill Streak 3 | . 3 2 2 Combat Bots Only 2 | . 2 2 2 Max Kills in Single Turn 2 | . 2 1 1 Gunslinging . | . . . . Exploded . | . . . . Melee . | . . . . Uniques/NPCs Destroyed . | . . . . Combat | -11 -10 -10 -9 -------- Run | Yrd Mat Min Mat Hostile Shots Fired 210 | . 95 11 104 Missed 58 | . 28 1 29 Damage Taken 1657 | . 738 79 840 Core 205 | . 53 25 127 Absorbed by Shields . | . . . . Core Remaining (%) 84 | 100 . 68 . Volleys Fired 102 | . 69 10 23 Largest 2 | . 2 2 2 Hottest 95 | . 60 40 95 Shots Fired 178 | . 117 20 41 Gun 178 | . 117 20 41 Cannon . | . . . . Launcher . | . . . . Special . | . . . . Kinetic 161 | . 115 20 26 Thermal 17 | . 2 . 15 Explosive . | . . . . Electromagnetic . | . . . . Robot Hit Streak 10 | . 10 5 4 Robot Miss Streak 6 | . 4 4 6 Penetration Max . | . . . . Secondary Targets 1 | . . . 1 Max Gunslinging Chain 1 | . . . 1 Shots Hit Robots 105 | . 76 9 20 Core Hits 51 | . 36 3 12 Critical Kills . | . . . . Critical Parts Destroyed 1 | . 1 . . Critical Strikes 2 | . 1 . 1 Burn 1 | . . . 1 Destroy 1 | . 1 . . Melee Attacks . | . . . . Impact . | . . . . Slashing . | . . . . Piercing . | . . . . Sneak Attacks . | . . . . Combat Hostiles . | . . . . Follow-up Attacks . | . . . . Damage Inflicted 1304 | . 924 84 296 Guns 1304 | . 924 84 296 Cannons . | . . . . Explosions . | . . . . Melee . | . . . . Ramming . | . . . . Kinetic 1141 | . 904 84 153 Thermal 163 | . 20 . 143 Explosive . | . . . . Electromagnetic . | . . . . Impact . | . . . . Slashing . | . . . . Piercing . | . . . . Highest Corruption . | . . . . Average Corruption . | . . . . Corruption Purged . | . . . . Corruption Blocked . | . . . . Overload Shots . | . . . . Overflow Damage . | . . . . Projectiles . | . . . . Explosions . | . . . . Melee . | . . . . Knockbacks . | . . . . Impact . | . . . . Kinetic . | . . . . Secondary . | . . . . Self-Inflicted Damage . | . . . . Shots . | . . . . Rammed . | . . . . Targets Rammed . | . . . . Kicked . | . . . . Crushed . | . . . . Highest Temperature 368 | . 28 6 368 Average Temperature 84 | . 6 4 143 Received Heat Transfer 744 | . 375 . 369 Effects 1 | . . . 1 Shutdowns 1 | . . . 1 Siege Activations . | . . . . Robots Corrupted . | . . . . Combat Hostiles . | . . . . Parts Fried . | . . . . Impact Corruptions . | . . . . Robots Melted . | . . . . Combat Hostiles . | . . . . Parts Melted . | . . . . Heat Transferred 383 | . 50 . 333 Parts Sabotaged . | . . . . Parts Stolen . | . . . . Parts Stripped . | . . . . Power Chain Reactions . | . . . . Alert | -11 -10 -10 -9 ------- Run | Yrd Mat Min Mat Peak Influence 277 | . 277 179 150 Initial 21 | . . 21 8 Average 65 | . 88 25 54 Maximum Alert Level 1 | . 1 . . Low Security (%) 96 | 100 94 100 100 Level 1 3 | . 5 . . Level 2 . | . . . . Level 3 . | . . . . Level 4 . | . . . . Level 5 . | . . . . High Security . | . . . . Max Security . | . . . . Squads Dispatched 6 | . 4 . 2 Investigation 4 | . 4 . . Extermination . | . . . . Reinforcement 2 | . . . 2 Assault . | . . . . Garrison . | . . . . Intercept . | . . . . Searches Triggered . | . . . . Construction Impeded . | . . . . Haulers Reinforced . | . . . . Active Scanning Responses . | . . . . Cargo Convoy Interrupts . | . . . . Stealth | -11 -10 -10 -9 --------- Run | Yrd Mat Min Mat Distress Signals 4 | . 3 . 1 Communications Jammed . | . . . . Distress Signals . | . . . . Times Spotted 48 | . 26 7 15 Peak Tracking Total 6 | . 4 3 6 Tactical Retreats 6 | . 4 1 1 Traps | -11 -10 -10 -9 ------- Run | Yrd Mat Min Mat Traps Triggered 8 | . 8 . . Indirectly . | . . . . Trap Hack Attempts . | . . . . Triggered . | . . . . Disarmed . | . . . . Reprogrammed . | . . . . Reused . | . . . . Traps Extracted . | . . . . Installed . | . . . . Triggered . | . . . . Machines | -11 -10 -10 -9 ---------- Run | Yrd Mat Min Mat Machines Disabled 1 | . . . 1 Max in Single Turn 1 | . . . 1 Machines Repaired . | . . . . Machines Dismantled . | . . . . Machines Sabotaged . | . . . . Overloaded Fab Kills . | . . . . Hacking | -11 -10 -10 -9 --------- Run | Yrd Mat Min Mat Machines Accessed 1 | . 1 . . Terminals 1 | . 1 . . Fabricators . | . . . . Repair Stations . | . . . . Recycling Units . | . . . . Scanalyzers . | . . . . Garrison Access . | . . . . Total Hacks 1 | . 1 . . Successful 1 | . 1 . . Failed . | . . . . Catastrophic . | . . . . Database Lockouts . | . . . . Manual 1 | . 1 . . Terminals 1 | . 1 . . Fabricators . | . . . . Repair Stations . | . . . . Recycling Units . | . . . . Scanalyzers . | . . . . Garrison Access . | . . . . Terminal Hacks 1 | . 1 . . Alert Level 1 | . 1 . . Fabricator Hacks . | . . . . Repair Station Hacks . | . . . . Recycling Unit Hacks . | . . . . Scanalyzer . | . . . . Garrison Access Hacks . | . . . . Unauthorized Hacks . | . . . . Terminals . | . . . . Fabricators . | . . . . Repair Stations . | . . . . Recycling Units . | . . . . Scanalyzers . | . . . . Garrison Access . | . . . . Data Cores Recovered . | . . . . Used . | . . . . Hacking Detections 1 | . 1 . . Full Trace Events . | . . . . Feedback Events . | . . . . Feedback Blocked . | . . . . Robot Schematics Acquired . | . . . . Robots Built . | . . . . Authchips . | . . . . Time . | . . . . Total Robot Build Rating . | . . . . Part Schematics Acquired . | . . . . Parts Built . | . . . . Authchips . | . . . . Time . | . . . . Total Part Build Rating . | . . . . Parts Repaired . | . . . . Time . | . . . . Parts Recycled . | . . . . Recycled Matter . | . . . . Retrieved Matter . | . . . . Retrieved Components . | . . . . Parts Scanalyzed . | . . . . Part Schematics Acquired . | . . . . Parts Damaged . | . . . . Bothacking | -11 -10 -10 -9 ------------ Run | Yrd Mat Min Mat Used RIF Installer . | . . . . Robots Hacked . | . . . . Non-combat . | . . . . Combat . | . . . . Robot Hacks Applied . | . . . . Relay Couplers Released . | . . . . Fabnet Peak Effective % . | . . . . Robots Rewired . | . . . . Allies Hacked . | . . . . Hacks Repelled . | . . . . Allies | -11 -10 -10 -9 -------- Run | Yrd Mat Min Mat Total Allies 2 | . . 2 . Largest Group 2 | . . 2 2 Highest-Rated Group 42 | . . 42 42 Highest-Rated Ally 31 | . . 31 31 Total Orders . | . . . . Ally Attacks 15 | . . 12 3 Total Damage 146 | . . 126 20 Kills 4 | . . 4 . Allies Corrupted . | . . . . Allies Melted . | . . . . Intel | -11 -10 -10 -9 ------- Run | Yrd Mat Min Mat Robot Analysis Total . | . . . . Derelict Logs Recovered 2 | . . 2 . Drone Launches . | . . . . Drone Recoveries . | . . . . Exploration | -11 -10 -10 -9 ------------- Run | Yrd Mat Min Mat Turns Passed 2934 | 60 1796 868 210 Spaces Moved 1373 | 46 819 442 66 Core 13 | 11 2 . . Treads 19 | . 19 . . Legs 1341 | 35 798 442 66 Wheels . | . . . . Hover . | . . . . Flight . | . . . . Fastest Speed 50 | 50 120 190 120 Average Speed 185 | 103 188 190 166 Slowest Speed 450 | 120 450 190 190 Overloaded Moves . | . . . . Propulsion Burnouts . | . . . . Robots Hopped . | . . . . Cave-ins Triggered . | . . . . Exploration Rate (%) 46 | 4 97 74 9 Regions Visited 3 Branch Regions 1 Pre-discovered Areas 1 | . . 1 . Known Exits Taken . | . . . . Unknown Exits Taken 3 | 1 1 1 . Scrap Searched . | . . . . Spaces Dug . | . . . . Terrain Destroyed . | . . . . Melee . | . . . . Projectile . | . . . . AOE . | . . . . Terrain Rammed . | . . . . Walls Destroyed . | . . . . Machines Disabled . | . . . . Actions | -11 -10 -10 -9 --------- Run | Yrd Mat Min Mat Total 1593 | 56 956 453 128 Wait 40 | . 15 . 25 Move 1370 | 45 818 441 66 Hop . | . . . . Pick Up 29 | 5 22 1 1 Fast Attach 13 | 5 7 . 1 Attach 15 | 1 9 . 5 Detach 5 | . 4 . 1 Swap 9 | . 4 . 5 Drop 10 | . 8 1 1 Fire 102 | . 69 10 23 Melee . | . . . . Ram . | . . . . Kick . | . . . . Crush . | . . . . Escape Stasis . | . . . . Rewire . | . . . . Trap . | . . . . Miscellaneous . | . . . . Route ------- -11/Scrapyard -10/Materials (discovered 5 exits: [*Mat x3] / [*Min x2]) -10/Mines -9/Materials History --------- Turn | Location | Event 7 | -11/Scrapyard | Discovered new exit (range 16) 61 | -11/Scrapyard | Entered Materials 308 | -10/Materials | Build established: Mutant 741 | -10/Materials | Discovered new exit (range 11) 1003 | -10/Materials | Discovered new exit (range 6) 1131 | -10/Materials | Discovered new exit (range 15) 1358 | -10/Materials | Discovered new exit (range 15) 1708 | -10/Materials | Discovered new exit (range 15) 1857 | -10/Materials | Entered Mines 1864 | -10/Mines | Received a Rocket Launcher from a helpful Derelict 1914 | -10/Mines | Learned Materials trap positions 2034 | -10/Mines | Learned location of Zion (-7) 2055 | -10/Mines | Discovered new exit (range 16) 2256 | -10/Mines | Found a hidden stash of uninstalled traps 2725 | -10/Mines | Entered Materials 2725 | -9/Materials | Accompanied by 2 allies 2725 | -9/Materials | Evolved 2 slots: Propulsion x1, Utility x1 2726 | -9/Materials | Loaded intel: 17 trap records 2730 | -9/Materials | Led the pair of lost Derelicts to an unsafe place 2935 | -9/Materials | Self-destructed Last Messages --------------- 02850_ Acquired 8 matter. 02851_ S-10 Pest destroyed. 02858_ S-10 Pest suffers critical hit (Burn). 02858_ S-10 Pest destroyed. 02866_ Material Processor disabled. 02900_ Critical hit (Burn: +37). 02901_ G-34 Mercenary destroyed. 02901_ Switching to secondary target: Y-45 Defender. 02906_ Lgt. Armor Plating destroyed. 02915_ Aluminum Leg destroyed. 02918_ Power failure, Ion Engine shutdown. 02919_ Lgt. Assault Rifle destroyed. 02923_ Critical hit (Burn: +37). 02932_ G-34 Mercenary destroyed. 02932_ Critical hit (Burn: +37). 02933_ C-30 ARC bursts open, deploying its payload. 02933_ G-47 Trooper unfolds itself. 02933_ G-34 Mercenary unfolds itself. 02933_ G-34 Mercenary destroyed. 02935_ Critical hit (Burn: +37). Map ----- +----------------------------------------------------+ | ?????????????????????????????????????????????????? | | ?????????????????????????????????????????????????? | | ?????????????????????????????????????????????????? | | ?????????????????????????????????????????????????? | | ?????????????????????????????????????????????????? | | ?????????????????????????????????????????????????? | | ?????????????????????????????????????????????????? | | ?????????????????????????????????????????????????? | | ?????????????????????????????????????????????????? | | ?????????????????????????????????????????????????? | | ?????????????????????????????????????????????????? | | ?????????????????????????????????????????????????? | | ?????????????????????????????????????????????????? | | ?????????????????????????????????????????????????? | | ?????????????????????????????????????????????????? | | ?????????????????????????????????????????????????? | | ???????????????????????????????????^?????????????? | | ???????????????????????????????????^?????????????? | | ?????????????????+##?????????????????????????????? | | ?????????????????? %??????????????^?????????????? | | ??????????????????##+######????????^?????????????? | | ??????????????????# g *#????????^?????????????? | | ??????????????????#""" !=[+????????^?????????????? | | ??????????????????#"R gs%!#??????????????????????? | | ??????????????????#""" ==%#??????????????????????? | | ??????????????????# %!@#??????????????????????? | | ??????????????????######Y#####???????????????????? | | ???????????????????# *%*[ #???????????????????? | | ???????????????????# "" =%* #???????????????????? | | ???????????????????#"""""*%! #???????????????????? | | ???????????????????#"""" *= #???????????????????? | | ???????????????????#"""""%= #???????????????????? | | ???????????????????# """!=* #???????????????????? | | ???????????????????# = #???????????????????? | | ???????????????# %+" #???????????????????? | | ???????????????# #####+#####??????? #?????????? | | ???????????????# ???# ######## ##????????? | | ???????????????#?????# #???????? | | ???????^?????????????# T +???????? | | ?????????????????????# #???????? | | ?????????????????????# #############?????????? | | ?????????????????????## #####??????????????????? | | ??????????????????????# # #??????????????????? | | ???????????? ^????????# # #??????????????????? | | ??????????^ ^ ???????# #???????????????????? | | ?????????^ ^ ^ ?????# # #???????????????????? | | ?????????? ????# ####???????????????????? | | ????????? #### #####??????????????????? | | ????????? #??????????????????? | | ????????????T" #??????????????????? | +----------------------------------------------------+ Best States ------------- Heat Dissipation 28 Energy Generation 10 Energy Capacity 250 Matter Stores 300 Matter Capacity 300 Sight Range 16 Terrain Scan Density 10 Armor Coverage 225 Evasion (%) 55 Recoil Reduction 3 Item Schematics ----------------- None Robot Schematics ------------------ None Fabricated ------------ Nothing Alien Tech Used ----------------- None Achievements -------------- None Challenges ------------ None Game ------ Seed TeleporterPortableEngine Manual? 0 Play Time 00:15:54 Cumulative 39.6 hours Start 2024.11.01 @ 20:22:20 End 2024.11.02 @ 07:23:51 Sessions 3 Manual Loads 0 Difficulty Rogue Special Mode None Game No. 55 Rogue 48 Adventurer 0 Explorer 7 Win Type - Total 1 Types 1/0/0/0/0/0/0/0/0 Lore% 12 Gallery% 24 Achievement% 27 Wizard Run 0 Options --------- Layout 0 ASCII 0 Keyboard 0 Movement Mouse Keybinds 0 Fullscreen 1 Font 24/Terminus Map View 76x50 Zoom Use 0% Tactical HUD 1 Map Filters NONE Filters NONE Steam 1 RUN: c45a4767-d707-42b6-b334-af6c4608d87c